[Event "8th Mersin Open 2024"]
[Site "Mersin"]
[Date "2024.11.13"]
[Round "5"]
[White "Yalcin, Enes Furkan"]
[Black "Alim, Mehmet Emir"]
[Result "1-0"]
[ECO "B22"]
[WhiteElo "1585"]
[BlackElo "1532"]
[Annotator "NA RC"]
[PlyCount "135"]
[EventDate "2024.11.10"]
[EventType "swiss"]
[EventCountry "TUR"]
[SourceTitle "playchess.com"]
[Source "ChessBase"]
[SourceQuality "1"]
[TimeControl "5400+30"]

1. e4 {[%emt 0:01:00]} c5 {[%emt 0:02:00]} 2. Nf3 {[%emt 0:00:30]} e6 {[%emt 0:00:30]} 3. c3 {[%emt 0:00:00]} d5 {[%emt 0:00:00]} 4. exd5 {[%emt 0:00:00]} Qxd5 {[%emt 0:00:00]} 5. d4 {[%emt 0:00:30]} cxd4 {[%emt 0:00:00]} 6. Qxd4 {[%emt 0:00:00]} Nf6 {[%emt 0:00:00]} 7. Bg5 {[%emt 0:00:00]} Nbd7 {[%emt 0:00:30]} 8. Bc4 {[%emt 0:00:30]} Qe4+ {[%emt 0:00:30]} 9. Be3 {[%emt 0:00:30]} a6 {[%emt 0:00:30]} 10. Bb3 {[%emt 0:00:30]} b5 {[%emt 0:01:30]} 11. Nbd2 {[%emt 0:00:30]} Qxd4 {[%emt 0:02:30]} 12. Bxd4 {[%emt 0:00:30]} Bb7 {[%emt 0:00:30]} 13. O-O {[%emt 0:01:30]} Bd6 {[%emt 0:01:30]} 14. Rfe1 {[%emt 0:02:30]} Ke7 {[%emt 0:01:30]} 15. Ng5 {[%emt 0:02:30]} Nc5 {[%emt 0:01:30]} 16. Bc2 {[%emt 0:06:30]} h6 {[%emt 0:02:30]} 17. Nge4 {[%emt 0:00:30]} Ncxe4 {[%emt 0:00:30]} 18. Nxe4 {[%emt 0:00:30]} Nxe4 {[%emt 0:00:30]} 19. Bxe4 {[%emt 0:00:30]} Bxe4 {[%emt 0:00:30]} 20. Rxe4 {[%emt 0:00:00]} f6 {[%emt 0:00:00]} 21. Rae1 {[%emt 0:00:00]} e5 {[%emt 0:00:00]} 22. f4 {[%emt 0:00:30]} f5 {[%emt 0:00:30]} 23. R4e2 {[%emt 0:00:30]} e4 {[%emt 0:00:00]} 24. Bxg7 {[%emt 0:00:30]} Rh7 {[%emt 0:00:00]} 25. Bd4 {[%emt 0:00:30]} Ke6 {[%emt 0:00:30]} 26. g3 {[%emt 0:01:30]} Rg8 {[%emt 0:00:30]} 27. Kf2 {[%emt 0:00:30]} h5 {[%emt 0:00:30]} 28. h4 {[%emt 0:00:30]} Rh6 {[%emt 0:00:00]} 29. Re3 {[%emt 0:02:30]} Rhg6 {[%emt 0:00:00]} 30. b4 {[%emt 0:07:30]} Kd5 {[%emt 0:05:30]} 31. Rd1 {[%emt 0:02:30]} Ke6 {[%emt 0:02:30]} 32. a3 {[%emt 0:09:30]} a5 {[%emt 0:10:30]} 33. bxa5 {[%emt 0:17:30]} Bxa3 {[%emt 0:00:30]} 34. c4 {[%emt 0:00:30]} Bb4 {[%emt 0:00:00]} 35. cxb5 {[%emt 0:05:30]} Bxa5 {[%emt 0:01:00]} 36. Ra3 {[%emt 0:03:30]} Bb4 {[%emt 0:03:30]} 37. Ra6+ {[%emt 0:01:30]} Ke7 {[%emt 0:00:00]} 38. Rxg6 {[%emt 0:00:30]} Rxg6 {[%emt 0:00:00]} 39. b6 {[%emt 0:00:30]} Rg8 {[%emt 0:02:30]} 40. Rb1 {[%emt 0:00:00]} Bd6 {[%emt 0:00:30]} 41. b7 {[%emt 0:01:00]} Bb8 {[%emt 0:00:30]} 42. Rb5 {[%emt 0:01:30]} Rd8 {[%emt 0:02:30]} 43. Be5 {[%emt 0:01:30]} Bxe5 {[%emt 0:00:30]} 44. fxe5 {[%emt 0:00:30]} Rb8 {[%emt 0:00:30]} 45. Ke3 {[%emt 0:00:30]} Kd7 {[%emt 0:00:30]} 46. Kf4 {[%emt 0:01:30]} Kc6 {[%emt 0:01:30]} 47. Rb3 {[%emt 0:00:30]} Rxb7 {[%emt 0:00:00]} 48. Re3 {[%emt 0:00:00]} Kd5 {[%emt 0:00:00]} 49. Kxf5 {[%emt 0:03:00]} Rf7+ {[%emt 0:00:30]} 50. Kg6 {[%emt 0:01:30]} Rf3 {[%emt 0:00:30]} 51. e6 {[%emt 0:02:30]} Rxe3 {[%emt 0:05:30]} 52. e7 {[%emt 0:00:30]} Rxg3+ {[%emt 0:00:30]} 53. Kh7 {[%emt 0:00:00]} Rf3 {[%emt 0:00:30]} 54. e8=Q {[%emt 0:00:00]} Rf5 {[%emt 0:00:30]} 55. Kg6 {[%emt 0:00:30]} Re5 {[%emt 0:00:00]} 56. Qd7+ {[%emt 0:00:30]} Kc4 {[%emt 0:00:00]} 57. Qc6+ {[%emt 0:00:30]} Kd4 {[%emt 0:00:30]} 58. Qd6+ {[%emt 0:00:30]} Rd5 {[%emt 0:00:30]} 59. Qb4+ {[%emt 0:00:30]} Ke3 {[%emt 0:00:30]} 60. Qe1+ {[%emt 0:00:30]} Kd4 {[%emt 0:00:30]} 61. Qd2+ {[%emt 0:01:30]} Ke5 {[%emt 0:00:30]} 62. Qc3+ {[%emt 0:00:30]} Kf4 {[%emt 0:00:30]} 63. Qc6 {[%emt 0:01:30]} Rf5 {[%emt 0:01:30]} 64. Qd6+ {[%emt 0:00:30]} Re5 {[%emt 0:00:30]} 65. Qf6+ {[%emt 0:00:00]} Kg4 {[%emt 0:00:30]} 66. Qxe5 {[%emt 0:00:00]} e3 {[%emt 0:00:30]} 67. Qxe3 {[%emt 0:00:30]} Kxh4 {[%emt 0:00:30]} 68. Qg5+ {[%emt 0:00:30]} 1-0

[Event "8th Mersin Open 2024"]
[Site "Mersin"]
[Date "2024.11.13"]
[Round "5"]
[White "Tawel, Ihab."]
[Black "Ozturk, Yucel Mert"]
[Result "0-1"]
[ECO "B01"]
[WhiteElo "1584"]
[BlackElo "1545"]
[Annotator "NA"]
[PlyCount "88"]
[EventDate "2024.11.10"]
[EventType "swiss"]
[EventCountry "TUR"]
[SourceTitle "playchess.com"]
[Source "ChessBase"]
[SourceQuality "1"]
[TimeControl "5400+30"]

1. e4 {[%emt 0:08:00]} d5 {[%emt 0:01:00]} 2. exd5 {[%emt 0:00:30]} Qxd5 {[%emt 0:00:30]} 3. Nc3 {[%emt 0:00:30]} Qd6 {[%emt 0:00:00]} 4. Nf3 {[%emt 0:00:30]} c6 {[%emt 0:00:00]} 5. h3 {[%emt 0:02:30]} Bf5 {[%emt 0:00:30]} 6. Bc4 {[%emt 0:00:30]} Nf6 {[%emt 0:00:30]} 7. d3 {[%emt 0:04:30]} e6 {[%emt 0:00:30]} 8. O-O {[%emt 0:00:30]} Qc7 {[%emt 0:01:30]} 9. Re1 {[%emt 0:00:30]} Be7 {[%emt 0:06:30]} 10. Nd4 {[%emt 0:09:30]} O-O {[%emt 0:25:30]} 11. Nxf5 {[%emt 0:00:30]} exf5 {[%emt 0:00:00]} 12. Qf3 {[%emt 0:00:00]} g6 {[%emt 0:04:00]} 13. Bh6 {[%emt 0:00:00]} Re8 {[%emt 0:00:30]} 14. Re2 {[%emt 0:02:30]} Nbd7 {[%emt 0:02:30]} 15. Rae1 {[%emt 0:05:30]} Bf8 {[%emt 0:02:30]} 16. Qf4 {[%emt 0:07:30]} Qxf4 {[%emt 0:05:30]} 17. Bxf4 {[%emt 0:00:00]} Rxe2 {[%emt 0:00:30]} 18. Rxe2 {[%emt 0:00:00]} Re8 {[%emt 0:00:30]} 19. Kf1 {[%emt 0:02:30]} Rxe2 {[%emt 0:07:30]} 20. Kxe2 {[%emt 0:00:30]} Kg7 {[%emt 0:04:30]} 21. d4 {[%emt 0:03:30]} Nb6 {[%emt 0:03:30]} 22. Bb3 {[%emt 0:01:30]} Be7 {[%emt 0:07:30]} 23. Be5 {[%emt 0:02:30]} Nbd7 {[%emt 0:01:30]} 24. f4 {[%emt 0:00:30]} Bb4 {[%emt 0:03:30]} 25. d5 {[%emt 0:04:30]} Nxe5 {[%emt 0:01:30]} 26. fxe5 {[%emt 0:00:30]} Bxc3 {[%emt 0:01:30]} 27. bxc3 {[%emt 0:00:30]} Nxd5 {[%emt 0:00:30]} 28. Bxd5 {[%emt 0:01:30]} cxd5 {[%emt 0:00:00]} 29. Kd3 {[%emt 0:00:00]} g5 {[%emt 0:03:00]} 30. Kd4 {[%emt 0:00:00]} g4 {[%emt 0:00:41]} 31. Kxd5 {[%emt 0:05:30]} gxh3 {[%emt 0:00:30]} 32. gxh3 {[%emt 0:00:00]} Kg6 {[%emt 0:00:08]} 33. Kd4 {[%emt 0:03:00]} Kg5 {[%emt 0:05:34]} 34. Ke3 {[%emt 0:00:00]} f4+ {[%emt 0:00:28]} 35. Ke4 {[%emt 0:02:00]} f3 {[%emt 0:00:16]} 36. Kxf3 {[%emt 0:00:00]} Kf5 {[%emt 0:00:00]} 37. a4 {[%emt 0:05:00]} Kxe5 {[%emt 0:00:39]} 38. c4 {[%emt 0:02:30]} a5 {[%emt 0:02:00]} 39. c3 {[%emt 0:03:30]} b6 {[%emt 0:00:38]} 40. Ke3 {[%emt 0:01:30]} f5 {[%emt 0:00:53]} 41. Kf3 {[%emt 0:00:30]} f4 {[%emt 0:00:14]} 42. h4 {[%emt 0:00:30]} h5 {[%emt 0:00:08]} 43. Kf2 {[%emt 0:00:30]} Ke4 {[%emt 0:00:44]} 44. Ke2 {[%emt 0:00:30]} f3+ {[%emt 0:00:00]} 0-1

[Event "8th Mersin Open 2024"]
[Site "Mersin"]
[Date "2024.11.13"]
[Round "5"]
[White "Sadigov, Kamil"]
[Black "Karatiken, Beray"]
[Result "1-0"]
[ECO "C41"]
[WhiteElo "1565"]
[BlackElo "1594"]
[Annotator "NA"]
[PlyCount "155"]
[EventDate "2024.11.10"]
[EventType "swiss"]
[EventCountry "TUR"]
[SourceTitle "playchess.com"]
[Source "ChessBase"]
[SourceQuality "1"]
[TimeControl "5400+30"]

1. e4 {[%emt 0:01:00]} d6 {[%emt 0:01:00]} 2. d4 {[%emt 0:00:30]} Nf6 {[%emt 0:00:00]} 3. Nc3 {[%emt 0:01:30]} Nbd7 {[%emt 0:00:00]} 4. Nf3 {[%emt 0:00:30]} e5 {[%emt 0:00:30]} 5. dxe5 {[%emt 0:04:30]} dxe5 {[%emt 0:02:30]} 6. a3 {[%emt 0:03:30]} c6 {[%emt 0:01:30]} 7. Bc4 {[%emt 0:00:30]} Be7 {[%emt 0:00:30]} 8. O-O {[%emt 0:02:30]} Qc7 {[%emt 0:00:00]} 9. h3 {[%emt 0:05:30]} h6 {[%emt 0:01:00]} 10. Re1 {[%emt 0:01:30]} Nf8 {[%emt 0:01:30]} 11. Be3 {[%emt 0:04:30]} Be6 {[%emt 0:05:30]} 12. Qe2 {[%emt 0:02:30]} g5 {[%emt 0:04:30]} 13. Nh2 {[%emt 0:00:30]} b5 {[%emt 0:05:30]} 14. Bb3 {[%emt 0:03:30]} Bxb3 {[%emt 0:07:30]} 15. cxb3 {[%emt 0:00:30]} Ne6 {[%emt 0:00:30]} 16. Rac1 {[%emt 0:03:30]} Qb7 {[%emt 0:02:30]} 17. Ng4 {[%emt 0:04:30]} Nd7 {[%emt 0:02:30]} 18. Red1 {[%emt 0:07:30]} h5 {[%emt 0:01:30]} 19. Nh2 {[%emt 0:00:00]} Nf4 {[%emt 0:04:30]} 20. Bxf4 {[%emt 0:01:00]} gxf4 {[%emt 0:00:30]} 21. Nf3 {[%emt 0:00:30]} a6 {[%emt 0:03:30]} 22. b4 {[%emt 0:01:30]} Rh6 {[%emt 0:08:30]} 23. Rd3 {[%emt 0:03:30]} Re6 {[%emt 0:15:30]} 24. Rcd1 {[%emt 0:05:30]} O-O-O {[%emt 0:00:30]} 25. Qd2 {[%emt 0:03:30]} Qc7 {[%emt 0:01:30]} 26. Nd5 {[%emt 0:11:30]} Qa7 {[%emt 0:06:30]} 27. Nxe7+ {[%emt 0:01:30]} Rxe7 {[%emt 0:00:30]} 28. Rd6 {[%emt 0:00:30]} Qc7 {[%emt 0:02:30]} 29. Qc3 {[%emt 0:11:04]} Re6 {[%emt 0:01:30]} 30. R6d3 {[%emt 0:01:24]} Ree8 {[%emt 0:02:08]} 31. Qd2 {[%emt 0:03:41]} f6 {[%emt 0:00:23]} 32. Qc3 {[%emt 0:03:30]} Nf8 {[%emt 0:02:55]} 33. Nh4 {[%emt 0:01:49]} Rxd3 {[%emt 0:00:30]} 34. Rxd3 {[%emt 0:00:30]} Ne6 {[%emt 0:00:30]} 35. Nf5 {[%emt 0:00:00]} Rd8 {[%emt 0:03:35]} 36. Rxd8+ {[%emt 0:00:00]} Kxd8 {[%emt 0:00:30]} 37. Qf3 {[%emt 0:00:43]} Qf7 {[%emt 0:01:22]} 38. Qd1+ {[%emt 0:00:09]} Kc7 {[%emt 0:01:30]} 39. Qd6+ {[%emt 0:00:10]} Kb7 {[%emt 0:00:21]} 40. Ne7 {[%emt 0:02:59]} Nd4 {[%emt 0:02:41]} 41. Qd7+ {[%emt 0:00:17]} Ka8 {[%emt 0:00:31]} 42. Qc8+ {[%emt 0:01:35]} Ka7 {[%emt 0:00:14]} 43. Nxc6+ {[%emt 0:00:09]} Nxc6 {[%emt 0:00:30]} 44. Qxc6 {[%emt 0:00:00]} Qb3 {[%emt 0:01:27]} 45. Qxf6 {[%emt 0:01:41]} Qxb2 {[%emt 0:00:02]} 46. Qf7+ {[%emt 0:00:56]} Kb6 {[%emt 0:00:21]} 47. Qg6+ {[%emt 0:00:44]} Kb7 {[%emt 0:00:08]} 48. Qxh5 {[%emt 0:00:10]} Qxa3 {[%emt 0:00:49]} 49. Qf7+ {[%emt 0:00:40]} Kb6 {[%emt 0:00:24]} 50. Qe6+ {[%emt 0:00:20]} Kb7 {[%emt 0:00:04]} 51. Qxe5 {[%emt 0:00:27]} Qxb4 {[%emt 0:00:45]} 52. Qxf4 {[%emt 0:00:30]} a5 {[%emt 0:00:00]} 53. Qf7+ {[%emt 0:00:07]} Kc6 {[%emt 0:00:00]} 54. Qf6+ {[%emt 0:00:19]} Qd6 {[%emt 0:00:57]} 55. Qc3+ {[%emt 0:00:30]} Kb6 {[%emt 0:00:30]} 56. e5 {[%emt 0:00:00]} Qe6 {[%emt 0:00:00]} 57. h4 {[%emt 0:00:32]} b4 {[%emt 0:00:00]} 58. Qe3+ {[%emt 0:00:19]} Kb5 {[%emt 0:00:00]} 59. h5 {[%emt 0:00:37]} b3 {[%emt 0:00:00]} 60. h6 {[%emt 0:00:00]} b2 {[%emt 0:04:00]} 61. Qe2+ {[%emt 0:00:14]} Kc5 {[%emt 0:00:00]} 62. Qxb2 {[%emt 0:01:02]} Qxh6 {[%emt 0:00:20]} 63. Qa3+ {[%emt 0:00:00]} Kb5 {[%emt 0:00:00]} 64. Qb2+ {[%emt 0:01:05]} Kc4 {[%emt 0:00:00]} 65. e6 {[%emt 0:00:26]} Qf8 {[%emt 0:01:13]} 66. Qb7 {[%emt 0:00:36]} Qd6 {[%emt 0:01:10]} 67. Qd7 {[%emt 0:00:37]} Kd5 {[%emt 0:01:11]} 68. Qb5+ {[%emt 0:00:39]} Kxe6 {[%emt 0:00:30]} 69. Qxa5 {[%emt 0:00:30]} Qd1+ {[%emt 0:00:15]} 70. Kh2 {[%emt 0:00:00]} Qe2 {[%emt 0:00:11]} 71. Qc5 {[%emt 0:00:04]} Kf6 {[%emt 0:00:31]} 72. Kg3 {[%emt 0:00:20]} Qd3+ {[%emt 0:00:00]} 73. Qe3 {[%emt 0:00:45]} Qg6+ {[%emt 0:00:00]} 74. Kf3 {[%emt 0:00:08]} Qh5+ {[%emt 0:00:09]} 75. g4 {[%emt 0:00:00]} Qh1+ {[%emt 0:00:26]} 76. Kf4 {[%emt 0:00:09]} Qh6+ {[%emt 0:01:05]} 77. Kg3 {[%emt 0:00:08]} Qh1 {[%emt 0:00:06]} 78. Qf3+ {[%emt 0:00:07]} 1-0

[Event "8th Mersin Open 2024"]
[Site "Mersin"]
[Date "2024.11.13"]
[Round "5"]
[White "Karabas, Beren Nisa"]
[Black "Celik, Fatih"]
[Result "0-1"]
[ECO "D38"]
[WhiteElo "1546"]
[BlackElo "1578"]
[Annotator "NA"]
[PlyCount "156"]
[EventDate "2024.11.10"]
[EventType "swiss"]
[EventCountry "TUR"]
[SourceTitle "playchess.com"]
[Source "ChessBase"]
[SourceQuality "1"]
[TimeControl "5400+30"]

1. d4 {[%emt 0:01:00]} d5 {[%emt 0:06:00]} 2. c4 {[%emt 0:00:00]} e6 {[%emt 0:00:30]} 3. Nc3 {[%emt 0:00:00]} Nf6 {[%emt 0:01:30]} 4. cxd5 {[%emt 0:00:30]} exd5 {[%emt 0:04:30]} 5. Bg5 {[%emt 0:00:30]} Nbd7 {[%emt 0:06:30]} 6. e3 {[%emt 0:03:30]} Bb4 {[%emt 0:01:30]} 7. Bd3 {[%emt 0:07:30]} O-O {[%emt 0:02:30]} 8. Nf3 {[%emt 0:01:30]} h6 {[%emt 0:01:30]} 9. Bh4 {[%emt 0:02:30]} Re8 {[%emt 0:07:30]} 10. O-O {[%emt 0:11:30]} Nb6 {[%emt 0:04:30]} 11. Ne5 {[%emt 0:04:30]} Be7 {[%emt 0:02:30]} 12. b3 {[%emt 0:05:30]} Nfd7 {[%emt 0:02:30]} 13. Bg3 {[%emt 0:07:30]} Nxe5 {[%emt 0:03:30]} 14. Bxe5 {[%emt 0:01:30]} a6 {[%emt 0:12:30]} 15. Rc1 {[%emt 0:08:30]} Bd6 {[%emt 0:02:30]} 16. Bg3 {[%emt 0:04:30]} Bxg3 {[%emt 0:02:30]} 17. hxg3 {[%emt 0:00:00]} Be6 {[%emt 0:08:30]} 18. Ne2 {[%emt 0:03:00]} Rc8 {[%emt 0:02:30]} 19. Nf4 {[%emt 0:00:30]} Qd7 {[%emt 0:01:30]} 20. Nxe6 {[%emt 0:03:30]} Qxe6 {[%emt 0:00:30]} 21. Qf3 {[%emt 0:00:30]} Qd6 {[%emt 0:02:30]} 22. Qf5 {[%emt 0:00:30]} g6 {[%emt 0:01:30]} 23. Qh3 {[%emt 0:01:30]} Kg7 {[%emt 0:00:30]} 24. g4 {[%emt 0:01:30]} c5 {[%emt 0:07:42]} 25. dxc5 {[%emt 0:05:30]} Rxc5 {[%emt 0:00:21]} 26. Qf3 {[%emt 0:03:30]} Rec8 {[%emt 0:02:04]} 27. Rcd1 {[%emt 0:00:30]} Qe5 {[%emt 0:01:38]} 28. Qe2 {[%emt 0:01:30]} Re8 {[%emt 0:01:54]} 29. Qd2 {[%emt 0:04:17]} Qc3 {[%emt 0:02:23]} 30. Bb1 {[%emt 0:03:29]} Qxd2 {[%emt 0:01:36]} 31. Rxd2 {[%emt 0:00:30]} Rec8 {[%emt 0:00:30]} 32. Rfd1 {[%emt 0:00:30]} Rc1 {[%emt 0:00:30]} 33. Kf1 {[%emt 0:00:30]} Rxd1+ {[%emt 0:00:30]} 34. Rxd1 {[%emt 0:00:14]} Kf6 {[%emt 0:01:42]} 35. Ke2 {[%emt 0:01:28]} Ke6 {[%emt 0:02:39]} 36. Rh1 {[%emt 0:03:06]} Rh8 {[%emt 0:01:08]} 37. g5 {[%emt 0:00:51]} h5 {[%emt 0:00:38]} 38. g4 {[%emt 0:01:46]} Nc8 {[%emt 0:01:18]} 39. f4 {[%emt 0:01:45]} Nd6 {[%emt 0:00:31]} 40. f5+ {[%emt 0:02:33]} gxf5 {[%emt 0:00:40]} 41. gxh5 {[%emt 0:00:10]} Ne4 {[%emt 0:01:35]} 42. Bxe4 {[%emt 0:02:10]} fxe4 {[%emt 0:00:12]} 43. h6 {[%emt 0:02:28]} Kf5 {[%emt 0:01:10]} 44. Rd1 {[%emt 0:00:34]} Kxg5 {[%emt 0:00:35]} 45. Rxd5+ {[%emt 0:00:14]} f5 {[%emt 0:00:42]} 46. Rd7 {[%emt 0:00:21]} Rxh6 {[%emt 0:00:00]} 47. Rg7+ {[%emt 0:00:33]} Kf6 {[%emt 0:00:00]} 48. Rxb7 {[%emt 0:00:42]} Rh2+ {[%emt 0:00:02]} 49. Ke1 {[%emt 0:00:15]} Rxa2 {[%emt 0:00:08]} 50. b4 {[%emt 0:00:39]} Kg5 {[%emt 0:01:08]} 51. Rg7+ {[%emt 0:00:11]} Kh4 {[%emt 0:00:00]} 52. Kf1 {[%emt 0:00:44]} Rb2 {[%emt 0:00:11]} 53. Rg6 {[%emt 0:00:24]} Rxb4 {[%emt 0:00:45]} 54. Rxa6 {[%emt 0:00:08]} Kg4 {[%emt 0:00:19]} 55. Ra1 {[%emt 0:00:39]} Kf3 {[%emt 0:00:27]} 56. Re1 {[%emt 0:00:58]} Kg3 {[%emt 0:00:49]} 57. Kg1 {[%emt 0:00:43]} Rb3 {[%emt 0:01:06]} 58. Rf1 {[%emt 0:01:40]} Rxe3 {[%emt 0:00:12]} 59. Rxf5 {[%emt 0:00:11]} Re1+ {[%emt 0:00:04]} 60. Rf1 {[%emt 0:00:19]} Rxf1+ {[%emt 0:00:30]} 61. Kxf1 {[%emt 0:00:00]} Kf3 {[%emt 0:00:11]} 62. Ke1 {[%emt 0:00:00]} Ke3 {[%emt 0:00:09]} 63. Kd1 {[%emt 0:00:25]} Kf2 {[%emt 0:00:30]} 64. Kd2 {[%emt 0:00:30]} e3+ {[%emt 0:00:30]} 65. Kd3 {[%emt 0:00:00]} e2 {[%emt 0:00:00]} 66. Kd4 {[%emt 0:00:00]} e1=Q {[%emt 0:00:00]} 67. Kd5 {[%emt 0:00:00]} Qe3 {[%emt 0:00:00]} 68. Kd6 {[%emt 0:00:00]} Qe4 {[%emt 0:00:00]} 69. Kd7 {[%emt 0:00:00]} Qg6 {[%emt 0:00:00]} 70. Kc7 {[%emt 0:00:00]} Qe6 {[%emt 0:00:12]} 71. Kb7 {[%emt 0:00:00]} Qd6 {[%emt 0:00:00]} 72. Ka7 {[%emt 0:00:10]} Qc6 {[%emt 0:00:08]} 73. Kb8 {[%emt 0:00:30]} Qd7 {[%emt 0:00:00]} 74. Ka8 {[%emt 0:00:00]} Ke3 {[%emt 0:00:00]} 75. Kb8 {[%emt 0:00:09]} Kd4 {[%emt 0:00:14]} 76. Ka8 {[%emt 0:00:00]} Kc5 {[%emt 0:00:00]} 77. Kb8 {[%emt 0:00:00]} Kb6 {[%emt 0:00:09]} 78. Ka8 {[%emt 0:00:14]} Qd8# {[%emt 0:00:00]} 0-1

[Event "8th Mersin Open 2024"]
[Site "Mersin"]
[Date "2024.11.13"]
[Round "5"]
[White "Shiraliyev, Muslim"]
[Black "Bugdayci, Mustafa"]
[Result "1-0"]
[ECO "B87"]
[WhiteElo "1520"]
[BlackElo "1592"]
[Annotator "NA"]
[PlyCount "93"]
[EventDate "2024.11.10"]
[EventType "swiss"]
[EventCountry "TUR"]
[SourceTitle "playchess.com"]
[Source "ChessBase"]
[SourceQuality "1"]
[TimeControl "5400+30"]

1. e4 {[%emt 0:01:00]} c5 {[%emt 0:02:00]} 2. Nf3 {[%emt 0:00:30]} d6 {[%emt 0:00:30]} 3. d4 {[%emt 0:00:00]} cxd4 {[%emt 0:00:30]} 4. Nxd4 {[%emt 0:00:00]} Nf6 {[%emt 0:00:30]} 5. Nc3 {[%emt 0:00:00]} a6 {[%emt 0:00:30]} 6. Bc4 {[%emt 0:00:00]} e6 {[%emt 0:02:30]} 7. Bb3 {[%emt 0:01:30]} Be7 {[%emt 0:01:30]} 8. Be3 {[%emt 0:02:30]} b5 {[%emt 0:01:30]} 9. a3 {[%emt 0:01:30]} Bb7 {[%emt 0:00:30]} 10. f3 {[%emt 0:11:30]} Nc6 {[%emt 0:07:30]} 11. Nxc6 {[%emt 0:04:30]} Bxc6 {[%emt 0:02:30]} 12. Qe2 {[%emt 0:00:30]} O-O {[%emt 0:03:30]} 13. O-O {[%emt 0:08:30]} Qc7 {[%emt 0:04:30]} 14. Rfd1 {[%emt 0:03:30]} Rfd8 {[%emt 0:03:30]} 15. Qf2 {[%emt 0:01:30]} Rab8 {[%emt 0:03:30]} 16. Rd3 {[%emt 0:05:30]} d5 {[%emt 0:03:30]} 17. exd5 {[%emt 0:03:30]} Nxd5 {[%emt 0:04:30]} 18. Nxd5 {[%emt 0:02:30]} Bxd5 {[%emt 0:03:30]} 19. Bxd5 {[%emt 0:00:30]} exd5 {[%emt 0:02:30]} 20. Rad1 {[%emt 0:02:30]} Rbc8 {[%emt 0:08:30]} 21. c3 {[%emt 0:06:30]} Qe5 {[%emt 0:05:30]} 22. Bd4 {[%emt 0:00:30]} Qh5 {[%emt 0:05:30]} 23. Qg3 {[%emt 0:01:30]} g6 {[%emt 0:01:30]} 24. Qe5 {[%emt 0:03:30]} Qxe5 {[%emt 0:01:30]} 25. Bxe5 {[%emt 0:01:30]} f6 {[%emt 0:02:30]} 26. Bd4 {[%emt 0:00:00]} Bc5 {[%emt 0:01:30]} 27. Bxc5 {[%emt 0:00:00]} Rxc5 {[%emt 0:00:00]} 28. Kf2 {[%emt 0:00:30]} Kf7 {[%emt 0:00:00]} 29. Re1 {[%emt 0:01:30]} a5 {[%emt 0:01:30]} 30. Red1 {[%emt 0:03:30]} Ke6 {[%emt 0:01:30]} 31. Re3+ {[%emt 0:00:00]} Kf7 {[%emt 0:02:30]} 32. Rd4 {[%emt 0:01:00]} Rc4 {[%emt 0:00:30]} 33. Ke2 {[%emt 0:03:30]} Rxd4 {[%emt 0:06:45]} 34. cxd4 {[%emt 0:00:30]} Rc8 {[%emt 0:00:00]} 35. Rb3 {[%emt 0:00:30]} b4 {[%emt 0:06:30]} 36. axb4 {[%emt 0:01:30]} Rb8 {[%emt 0:00:34]} 37. b5 {[%emt 0:00:00]} Ke6 {[%emt 0:00:17]} 38. Kd2 {[%emt 0:00:00]} Kd6 {[%emt 0:00:35]} 39. Kc1 {[%emt 0:00:30]} Kc7 {[%emt 0:01:04]} 40. Rc3+ {[%emt 0:00:30]} Kb6 {[%emt 0:00:33]} 41. Rc5 {[%emt 0:00:30]} Rd8 {[%emt 0:00:54]} 42. Kc2 {[%emt 0:02:30]} f5 {[%emt 0:00:43]} 43. Kb3 {[%emt 0:00:00]} Rd6 {[%emt 0:00:15]} 44. Ka4 {[%emt 0:01:00]} f4 {[%emt 0:01:05]} 45. Rc6+ {[%emt 0:01:30]} Rxc6 {[%emt 0:00:30]} 46. bxc6 {[%emt 0:00:00]} Kxc6 {[%emt 0:00:15]} 47. Kxa5 1-0

[Event "8th Mersin Open 2024"]
[Site "Mersin"]
[Date "2024.11.13"]
[Round "5"]
[White "Bugdayci, Resul"]
[Black "Yaglioglu, Batuhan Alp"]
[Result "1/2-1/2"]
[ECO "B01"]
[WhiteElo "1504"]
[BlackElo "1599"]
[Annotator "NA"]
[PlyCount "93"]
[EventDate "2024.11.10"]
[EventType "swiss"]
[EventCountry "TUR"]
[SourceTitle "playchess.com"]
[Source "ChessBase"]
[SourceQuality "1"]
[TimeControl "5400+30"]

1. e4 {[%emt 0:01:00]} d5 {[%emt 0:05:00]} 2. exd5 {[%emt 0:00:30]} Nf6 {[%emt 0:00:30]} 3. d4 {[%emt 0:02:30]} Bg4 {[%emt 0:00:30]} 4. Be2 {[%emt 0:03:30]} Bxe2 {[%emt 0:00:00]} 5. Nxe2 {[%emt 0:00:30]} Qxd5 {[%emt 0:00:00]} 6. O-O {[%emt 0:04:30]} e6 {[%emt 0:00:30]} 7. Nd2 {[%emt 0:05:30]} Nc6 {[%emt 0:08:30]} 8. Nf3 {[%emt 0:02:30]} Bd6 {[%emt 0:08:30]} 9. c3 {[%emt 0:06:30]} O-O-O {[%emt 0:08:30]} 10. Nf4 {[%emt 0:04:30]} Bxf4 {[%emt 0:07:30]} 11. Bxf4 {[%emt 0:00:30]} Qf5 {[%emt 0:01:30]} 12. Be5 {[%emt 0:08:30]} Ng4 {[%emt 0:20:30]} 13. Bg3 {[%emt 0:02:30]} g5 {[%emt 0:01:30]} 14. h3 {[%emt 0:01:30]} Nf6 {[%emt 0:00:30]} 15. Ne5 {[%emt 0:10:30]} Nxe5 {[%emt 0:06:30]} 16. Bxe5 {[%emt 0:00:00]} Rhg8 {[%emt 0:00:00]} 17. g4 {[%emt 0:06:00]} Qg6 {[%emt 0:00:00]} 18. c4 {[%emt 0:06:30]} Nd7 {[%emt 0:05:30]} 19. Bg3 {[%emt 0:06:30]} f5 {[%emt 0:07:08]} 20. f3 {[%emt 0:03:30]} f4 {[%emt 0:01:13]} 21. Bf2 {[%emt 0:01:30]} h5 {[%emt 0:01:46]} 22. Rc1 {[%emt 0:06:26]} hxg4 {[%emt 0:06:17]} 23. fxg4 {[%emt 0:00:48]} Rh8 {[%emt 0:07:17]} 24. Rc3 {[%emt 0:02:51]} Nc5 {[%emt 0:01:25]} 25. Kg2 {[%emt 0:05:48]} Ne4 {[%emt 0:00:59]} 26. Qc2 {[%emt 0:02:25]} Qh7 {[%emt 0:00:37]} 27. Ra3 {[%emt 0:01:26]} a6 {[%emt 0:00:28]} 28. b4 {[%emt 0:02:45]} Nxf2 {[%emt 0:00:22]} 29. Qxf2 {[%emt 0:01:38]} Qe4+ {[%emt 0:00:11]} 30. Qf3 {[%emt 0:00:51]} Qxf3+ {[%emt 0:00:51]} 31. Rfxf3 {[%emt 0:00:30]} Rxd4 {[%emt 0:00:00]} 32. Rac3 {[%emt 0:00:36]} e5 {[%emt 0:00:14]} 33. Rfd3 {[%emt 0:00:54]} Rhd8 {[%emt 0:00:25]} 34. Rxd4 {[%emt 0:00:45]} Rxd4 {[%emt 0:00:06]} 35. Kf3 {[%emt 0:00:03]} e4+ {[%emt 0:00:21]} 36. Ke2 {[%emt 0:00:21]} Kd7 {[%emt 0:00:15]} 37. a4 {[%emt 0:00:33]} Ke6 {[%emt 0:01:00]} 38. b5 {[%emt 0:00:18]} a5 {[%emt 0:00:00]} 39. Rc2 {[%emt 0:00:34]} Ke5 {[%emt 0:00:40]} 40. b6 {[%emt 0:00:58]} c6 {[%emt 0:00:17]} 41. Rc3 {[%emt 0:00:13]} f3+ {[%emt 0:01:31]} 42. Ke3 {[%emt 0:00:21]} Rd3+ {[%emt 0:01:01]} 43. Rxd3 {[%emt 0:00:34]} exd3 {[%emt 0:00:04]} 44. Kxd3 {[%emt 0:00:19]} Kf4 {[%emt 0:00:04]} 45. h4 {[%emt 0:00:18]} gxh4 {[%emt 0:00:30]} 46. g5 {[%emt 0:00:30]} Kxg5 {[%emt 0:00:30]} 47. Ke3 {[%emt 0:00:00]} 1/2-1/2